{"text_format":"1","workbook":"xlsx","n_sheets":1,"sheets":["Лист1"],"not_rendered":{"charts":0,"images":0,"macros":1,"external_links":0,"defined_names":2,"comments":0,"pivot_tables":0},"unopened":[],"bounds":{"document_bytes":16777216,"sheet_cells":100000,"rows_first":2000,"rows_last":500,"rows_between":2000,"halvings":0,"cell_chars":16384,"cell_head_chars":4096},"cells_cut":0,"cells_raw":0,"read":"whole","date_system":"1900"}

{"sheet":"Лист1","index":0,"n_rows":15,"n_cols":9,"rows_kept":15,"cut":false,"hidden":false,"merged":[[1,1,1,5],[1,6,1,7],[0,8,14,8],[0,1,0,5]]}
[null,"План продаж у менеджера по продажам 1 млн. руб.\nОклад - 20 тыс. руб. Премия - 5% от продаж (рассчитывается только при выполнении плана).",null,null,null,null,null,null,"нажмите на + / - выше, чтобы посмотреть / скрыть пример решения"]
[null,"Отчет по результатам работы менеджеров по продажам за январь",null,null,null,null,"ПРИМЕР РЕШЕНИЯ ЗАДАЧИ"]
[null,"Менеджер","Должность","Продажи, руб.","Выполнение плана","Зарплата за месяц, руб.","Выполнение плана","Зарплата за месяц, руб."]
[null,"Александров П.Ф.","Менеджер",1000329,null,null,{"$f":"IF(D4>=1000000,\"Молодец!\",\"План не выполнен:(\")","v":"Молодец!"},{"$f":"IF(D4>=1000000,20000+D4*5/100,20000)","v":70016.45}]
[null,"Иванов Г.Е.","Менеджер",1001091,null,null,{"$f":"IF(D5>=1000000,\"Молодец!\",\"План не выполнен:(\")","v":"Молодец!"},{"$f":"IF(D5>=1000000,20000+D5*5/100,20000)","v":70054.55}]
[null,"Ильин М.А.","Менеджер",848880,null,null,"План не выполнен:(",20000]
[null,"Кормилова Г.Г.","Менеджер",1093655,null,null,"Молодец!",74682.75]
[null,"Кротова Л.П.","Менеджер",1194134,null,null,"Молодец!",79706.7]
[null,"Ладыга Р.Л.","Менеджер",760238,null,null,"План не выполнен:(",20000]
[null,"Незенецев А.А.","Старший менеджер",1204346,null,null,"Молодец!",80217.3]
[null,"Новосельцева С.М.","Менеджер",849647,null,null,"План не выполнен:(",20000]
[null,"Ноготок В.С.","Менеджер",1031038,null,null,"Молодец!",71551.899999999994]
[null,"Соколова Н.И.","Старший менеджер",1046625,null,null,"Молодец!",72331.25]
[null,"Томова А.П.","Менеджер",1238587,null,null,"Молодец!",81929.350000000006]
[null,"Итого:",null,{"$f":"SUM(D4:D14)","v":11268570},null,{"$f":"SUM(F4:F14)","v":0},null,{"$f":"SUM(H4:H14)","v":660490.25}]